[Event "Late-Titled-Tuesday-Blitz-October-17-2023"]
[Site "Chess.com"]
[Date "2023.10.17"]
[Round "9"]
[White "Heinza9"]
[Black "Kostukov_Alex"]
[Result "0-1"]
[WhiteElo "2323"]
[BlackElo "2414"]
[TimeControl "180+1"]
[EndTime "15:40:23 PDT"]
[Termination "Kostukov_Alex won on time"]

1. e4 {[%clk 0:02:47.8]} 1... c5 {[%clk 0:02:59]} 2. Nf3 {[%clk 0:02:47.6]} 2...
g6 {[%clk 0:02:59.1]} 3. c3 {[%clk 0:02:46.1]} 3... Bg7 {[%clk 0:02:58.3]} 4. d4
{[%clk 0:02:46.2]} 4... cxd4 {[%clk 0:02:59.2]} 5. cxd4 {[%clk 0:02:46.5]} 5...
d5 {[%clk 0:02:59.8]} 6. e5 {[%clk 0:02:46.9]} 6... Nc6 {[%clk 0:02:59.6]} 7.
Nc3 {[%clk 0:02:46.7]} 7... Bg4 {[%clk 0:02:59.3]} 8. Be2 {[%clk 0:02:45.8]}
8... Nh6 {[%clk 0:02:59.3]} 9. h3 {[%clk 0:02:45.2]} 9... Bxf3 {[%clk
0:02:58.6]} 10. Bxf3 {[%clk 0:02:45.6]} 10... Nf5 {[%clk 0:02:55.9]} 11. Bxd5
{[%clk 0:02:43.9]} 11... Nfxd4 {[%clk 0:02:55.2]} 12. f4 {[%clk 0:02:28.7]}
12... Qb6 {[%clk 0:02:43.6]} 13. Be3 {[%clk 0:02:14.3]} 13... Nc2+ {[%clk
0:02:41.3]} 14. Qxc2 {[%clk 0:02:12]} 14... Qxe3+ {[%clk 0:02:42.2]} 15. Qe2
{[%clk 0:02:10.1]} 15... Qxf4 {[%clk 0:02:38]} 16. Rf1 {[%clk 0:02:07.6]} 16...
Qg3+ {[%clk 0:02:29.8]} 17. Rf2 {[%clk 0:02:01.8]} 17... O-O {[%clk 0:02:22.7]}
18. Bxc6 {[%clk 0:01:41.8]} 18... bxc6 {[%clk 0:02:20]} 19. O-O-O {[%clk
0:01:24.4]} 19... Bxe5 {[%clk 0:02:16.5]} 20. Ne4 {[%clk 0:01:22.7]} 20... Qh4
{[%clk 0:02:09.9]} 21. Rd7 {[%clk 0:01:11.4]} 21... Rab8 {[%clk 0:01:59.9]} 22.
b3 {[%clk 0:01:11.1]} 22... a5 {[%clk 0:01:52.9]} 23. Nd2 {[%clk 0:00:38.4]}
23... Bf4 {[%clk 0:01:41.4]} 24. Rd4 {[%clk 0:00:36.8]} 24... Bxd2+ {[%clk
0:01:35]} 25. Qxd2 {[%clk 0:00:36.5]} 25... Qg3 {[%clk 0:01:34.6]} 26. Rf3
{[%clk 0:00:34.3]} 26... Qe5 {[%clk 0:01:32.5]} 27. Re3 {[%clk 0:00:29.1]} 27...
Qf6 {[%clk 0:01:26.5]} 28. Rf3 {[%clk 0:00:26.8]} 28... Qe5 {[%clk 0:01:17.4]}
29. Re3 {[%clk 0:00:26.6]} 29... Qc7 {[%clk 0:01:16.4]} 30. Rd7 {[%clk 0:00:19]}
30... Qb6 {[%clk 0:01:10.6]} 31. Rexe7 {[%clk 0:00:18.5]} 31... a4 {[%clk
0:01:10.7]} 32. b4 {[%clk 0:00:08.6]} 32... Qxb4 {[%clk 0:01:03.9]} 33. Qxb4
{[%clk 0:00:08.6]} 33... Rxb4 {[%clk 0:01:04.4]} 34. Rc7 {[%clk 0:00:08.9]}
34... Rc4+ {[%clk 0:01:01.5]} 35. Kb2 {[%clk 0:00:07]} 35... h5 {[%clk
0:00:57.8]} 36. Ka3 {[%clk 0:00:04.8]} 36... h4 {[%clk 0:00:53.6]} 0-1

[Event "Late-Titled-Tuesday-Blitz-October-17-2023"]
[Site "Chess.com"]
[Date "2023.10.17"]
[Round "9"]
[White "Mikhail_Golubev"]
[Black "Cristi_Coca"]
[Result "1-0"]
[WhiteElo "2557"]
[BlackElo "2372"]
[TimeControl "180+1"]
[EndTime "15:40:25 PDT"]
[Termination "Mikhail_Golubev won by resignation"]

1. e4 {[%clk 0:02:55.5]} 1... c5 {[%clk 0:02:59.7]} 2. Nf3 {[%clk 0:02:54.6]}
2... e6 {[%clk 0:03:00.2]} 3. d4 {[%clk 0:02:54.5]} 3... cxd4 {[%clk 0:03:01.1]}
4. Nxd4 {[%clk 0:02:54.9]} 4... a6 {[%clk 0:03:01.8]} 5. Bd3 {[%clk 0:02:54.9]}
5... Bc5 {[%clk 0:03:01.2]} 6. Be3 {[%clk 0:02:53.7]} 6... Qc7 {[%clk
0:02:54.2]} 7. Qg4 {[%clk 0:02:30.1]} 7... Kf8 {[%clk 0:02:18]} 8. O-O {[%clk
0:02:24.9]} 8... Nf6 {[%clk 0:02:16.9]} 9. Qe2 {[%clk 0:02:20.3]} 9... b5 {[%clk
0:02:08.2]} 10. a4 {[%clk 0:02:15.6]} 10... bxa4 {[%clk 0:02:06.4]} 11. Rxa4
{[%clk 0:02:11.7]} 11... Be7 {[%clk 0:01:52.5]} 12. Rc4 {[%clk 0:02:01.3]} 12...
Qb7 {[%clk 0:01:30.3]} 13. e5 {[%clk 0:01:59.8]} 13... Nd5 {[%clk 0:01:26.4]}
14. Be4 {[%clk 0:01:56.4]} 14... Nc6 {[%clk 0:01:24]} 15. Nxc6 {[%clk
0:01:43.9]} 15... dxc6 {[%clk 0:01:23.1]} 16. b3 {[%clk 0:01:10.8]} 16... Bd7
{[%clk 0:01:21.7]} 17. Bc5 {[%clk 0:01:06.5]} 17... Bxc5 {[%clk 0:01:16.2]} 18.
Rxc5 {[%clk 0:01:07.4]} 18... Ke7 {[%clk 0:01:15.7]} 19. Nd2 {[%clk 0:01:02.1]}
19... Qb6 {[%clk 0:01:07.6]} 20. Qc4 {[%clk 0:00:59.6]} 20... Rhd8 {[%clk
0:00:58.7]} 21. Bxh7 {[%clk 0:00:48.7]} 21... g6 {[%clk 0:00:45.4]} 22. Qh4+
{[%clk 0:00:47.7]} 22... Ke8 {[%clk 0:00:44.6]} 23. Ne4 {[%clk 0:00:44.5]} 23...
Bc8 {[%clk 0:00:33.9]} 24. c4 {[%clk 0:00:38.1]} 24... Qxb3 {[%clk 0:00:13.7]}
25. cxd5 {[%clk 0:00:35.2]} 25... Rxd5 {[%clk 0:00:13.8]} 26. Nf6+ {[%clk
0:00:34.5]} 26... Kf8 {[%clk 0:00:12.9]} 27. Nxd5 {[%clk 0:00:31.1]} 27... exd5
{[%clk 0:00:11.4]} 28. Rxc6 {[%clk 0:00:29.7]} 28... Be6 {[%clk 0:00:10.7]} 29.
Bxg6 {[%clk 0:00:29]} 1-0

[Event "Late-Titled-Tuesday-Blitz-October-17-2023"]
[Site "Chess.com"]
[Date "2023.10.17"]
[Round "9"]
[White "GM_dmitrij"]
[Black "Beca95"]
[Result "0-1"]
[WhiteElo "3029"]
[BlackElo "2944"]
[TimeControl "180+1"]
[EndTime "15:40:38 PDT"]
[Termination "Beca95 won on time"]

1. e4 {[%clk 0:02:54.8]} 1... c5 {[%clk 0:02:58.8]} 2. Nf3 {[%clk 0:02:53.4]}
2... d6 {[%clk 0:02:59.1]} 3. Bb5+ {[%clk 0:02:52.7]} 3... Nd7 {[%clk
0:02:58.8]} 4. c4 {[%clk 0:02:52.7]} 4... Nf6 {[%clk 0:02:57.7]} 5. Nc3 {[%clk
0:02:24.9]} 5... g6 {[%clk 0:02:57.8]} 6. d3 {[%clk 0:02:23]} 6... Bg7 {[%clk
0:02:57.1]} 7. h3 {[%clk 0:02:21.7]} 7... O-O {[%clk 0:02:57.4]} 8. Ba4 {[%clk
0:02:22.6]} 8... Ne5 {[%clk 0:02:57]} 9. Nxe5 {[%clk 0:02:21.6]} 9... dxe5
{[%clk 0:02:57.9]} 10. Be3 {[%clk 0:02:22.4]} 10... b6 {[%clk 0:02:58]} 11. a3
{[%clk 0:02:18.1]} 11... Nh5 {[%clk 0:02:58]} 12. O-O {[%clk 0:02:12.1]} 12...
Nf4 {[%clk 0:02:56.6]} 13. Bc2 {[%clk 0:01:47.5]} 13... f5 {[%clk 0:02:50.7]}
14. Kh2 {[%clk 0:01:37]} 14... Ne6 {[%clk 0:02:49.5]} 15. f3 {[%clk 0:01:34]}
15... Nd4 {[%clk 0:02:49.1]} 16. b4 {[%clk 0:01:31.7]} 16... e6 {[%clk
0:02:48.4]} 17. Rb1 {[%clk 0:01:29.8]} 17... Rf7 {[%clk 0:02:47.6]} 18. Ba4
{[%clk 0:01:24.4]} 18... g5 {[%clk 0:02:30.5]} 19. bxc5 {[%clk 0:01:23.7]} 19...
bxc5 {[%clk 0:02:31.4]} 20. Ne2 {[%clk 0:01:06.8]} 20... h5 {[%clk 0:02:20.2]}
21. Bxd4 {[%clk 0:01:02.4]} 21... exd4 {[%clk 0:02:19.2]} 22. Bc6 {[%clk
0:01:00.4]} 22... Qc7+ {[%clk 0:02:18.3]} 23. f4 {[%clk 0:00:50.9]} 23... Qxc6
{[%clk 0:02:18.2]} 24. exf5 {[%clk 0:00:50]} 24... Rxf5 {[%clk 0:02:12.9]} 25.
Ng3 {[%clk 0:00:45.2]} 25... Rxf4 {[%clk 0:02:07.4]} 26. Qxh5 {[%clk 0:00:45.3]}
26... e5 {[%clk 0:01:22.1]} 27. Ne4 {[%clk 0:00:35.1]} 27... Qh6 {[%clk
0:01:05.8]} 28. Qe8+ {[%clk 0:00:34.8]} 28... Kh7 {[%clk 0:01:05.7]} 29. Qd8
{[%clk 0:00:24.5]} 29... Rxe4 {[%clk 0:01:01.1]} 30. dxe4 {[%clk 0:00:21.6]}
30... Bb7 {[%clk 0:01:00.8]} 31. Qd7 {[%clk 0:00:10.6]} 31... Bxe4 {[%clk
0:01:00.1]} 32. Rbe1 {[%clk 0:00:11.2]} 32... Qg6 {[%clk 0:00:59.8]} 33. Rf7
{[%clk 0:00:10.5]} 33... Rg8 {[%clk 0:01:00.4]} 34. Qxa7 {[%clk 0:00:06.5]}
34... g4 {[%clk 0:00:59.2]} 35. h4 {[%clk 0:00:04.7]} 35... g3+ {[%clk
0:00:58.7]} 36. Kg1 {[%clk 0:00:05.2]} 36... Bc6 {[%clk 0:00:52.3]} 37. Rc7
{[%clk 0:00:04.4]} 37... Qc2 {[%clk 0:00:49.3]} 0-1

[Event "Late-Titled-Tuesday-Blitz-October-17-2023"]
[Site "Chess.com"]
[Date "2023.10.17"]
[Round "9"]
[White "kai_nov"]
[Black "sorch29"]
[Result "0-1"]
[WhiteElo "2276"]
[BlackElo "2398"]
[TimeControl "180+1"]
[EndTime "15:40:45 PDT"]
[Termination "sorch29 won on time"]

1. d4 {[%clk 0:03:00.9]} 1... Nf6 {[%clk 0:02:59.8]} 2. c4 {[%clk 0:02:59.7]}
2... g6 {[%clk 0:03:00.1]} 3. f3 {[%clk 0:02:57.7]} 3... Bg7 {[%clk 0:03:01]} 4.
e4 {[%clk 0:02:57.2]} 4... d6 {[%clk 0:03:01.9]} 5. Nc3 {[%clk 0:02:57.4]} 5...
O-O {[%clk 0:03:02.8]} 6. Bg5 {[%clk 0:02:56.5]} 6... c5 {[%clk 0:03:03.1]} 7.
d5 {[%clk 0:02:56.5]} 7... e6 {[%clk 0:03:03.2]} 8. Qd2 {[%clk 0:02:56.4]} 8...
exd5 {[%clk 0:03:03.4]} 9. cxd5 {[%clk 0:02:57.3]} 9... h6 {[%clk 0:03:03]} 10.
Be3 {[%clk 0:02:56.4]} 10... Nh7 {[%clk 0:02:45.8]} 11. Nge2 {[%clk 0:02:38.6]}
11... a6 {[%clk 0:02:43]} 12. a4 {[%clk 0:02:37.8]} 12... Nd7 {[%clk 0:02:35.7]}
13. Ng3 {[%clk 0:02:32.9]} 13... h5 {[%clk 0:02:31.3]} 14. Nd1 {[%clk 0:02:04]}
14... Ne5 {[%clk 0:02:24.9]} 15. Bd3 {[%clk 0:01:42.4]} 15... h4 {[%clk
0:02:09.5]} 16. Ne2 {[%clk 0:01:41.5]} 16... h3 {[%clk 0:02:09.9]} 17. O-O
{[%clk 0:01:35.6]} 17... hxg2 {[%clk 0:02:08.1]} 18. Kxg2 {[%clk 0:01:36.2]}
18... Qh4 {[%clk 0:02:08.3]} 19. Ng1 {[%clk 0:01:34.6]} 19... Nxd3 {[%clk
0:01:53.6]} 20. Qxd3 {[%clk 0:01:33.9]} 20... f5 {[%clk 0:01:52.8]} 21. Bf2
{[%clk 0:01:16.2]} 21... Qh5 {[%clk 0:01:26.2]} 22. Nc3 {[%clk 0:01:06.6]} 22...
Ng5 {[%clk 0:01:25.1]} 23. h4 {[%clk 0:00:59.2]} 23... Nf7 {[%clk 0:01:18]} 24.
f4 {[%clk 0:00:55.1]} 24... fxe4 {[%clk 0:01:17.9]} 25. Nxe4 {[%clk 0:00:55.3]}
25... Bf5 {[%clk 0:01:18]} 26. Rae1 {[%clk 0:00:50.9]} 26... Rae8 {[%clk
0:01:18]} 27. Qf3 {[%clk 0:00:38.4]} 27... Qxf3+ {[%clk 0:00:58]} 28. Kxf3
{[%clk 0:00:39.3]} 28... Bxb2 {[%clk 0:00:54.7]} 29. Ng3 {[%clk 0:00:21.1]}
29... Bd3 {[%clk 0:00:52]} 30. Rxe8 {[%clk 0:00:19.3]} 30... Rxe8 {[%clk
0:00:52.9]} 31. Rd1 {[%clk 0:00:18.8]} 31... c4 {[%clk 0:00:51.9]} 32. N1e2
{[%clk 0:00:17.6]} 32... Nh6 {[%clk 0:00:44.2]} 33. Nd4 {[%clk 0:00:16.3]} 33...
Nf5 {[%clk 0:00:43.2]} 34. Ngxf5 {[%clk 0:00:12.8]} 34... gxf5 {[%clk
0:00:42.9]} 35. Ne6 {[%clk 0:00:12.1]} 35... Kf7 {[%clk 0:00:42.7]} 36. Bb6
{[%clk 0:00:09.9]} 36... Bf6 {[%clk 0:00:41.6]} 37. h5 {[%clk 0:00:04.9]} 37...
Rh8 {[%clk 0:00:42.2]} 0-1

[Event "Late-Titled-Tuesday-Blitz-October-17-2023"]
[Site "Chess.com"]
[Date "2023.10.17"]
[Round "9"]
[White "CraiggoryC"]
[Black "Inepton_Fermion"]
[Result "1-0"]
[WhiteElo "2231"]
[BlackElo "2369"]
[TimeControl "180+1"]
[EndTime "15:40:46 PDT"]
[Termination "CraiggoryC won by resignation"]

1. e4 {[%clk 0:02:58.2]} 1... c5 {[%clk 0:01:28.9]} 2. Nf3 {[%clk 0:02:56.6]}
2... d6 {[%clk 0:01:28.9]} 3. d4 {[%clk 0:02:57.2]} 3... cxd4 {[%clk 0:01:25.9]}
4. Nxd4 {[%clk 0:02:58.1]} 4... Nf6 {[%clk 0:01:24.1]} 5. Nc3 {[%clk 0:02:58.7]}
5... a6 {[%clk 0:01:20.7]} 6. Be3 {[%clk 0:02:59]} 6... e6 {[%clk 0:01:20.4]} 7.
g4 {[%clk 0:02:57.9]} 7... d5 {[%clk 0:01:11.5]} 8. g5 {[%clk 0:02:40.2]} 8...
Nxe4 {[%clk 0:01:08.9]} 9. Nxe4 {[%clk 0:02:40.6]} 9... dxe4 {[%clk 0:01:09.8]}
10. Bg2 {[%clk 0:02:40.7]} 10... Be7 {[%clk 0:00:59.9]} 11. Qd2 {[%clk
0:02:26.8]} 11... Bd7 {[%clk 0:00:55.1]} 12. Bxe4 {[%clk 0:02:22]} 12... Nc6
{[%clk 0:00:54.8]} 13. O-O-O {[%clk 0:02:16.1]} 13... Qc7 {[%clk 0:00:48.5]} 14.
Kb1 {[%clk 0:02:07.9]} 14... Rc8 {[%clk 0:00:38.6]} 15. h4 {[%clk 0:01:59.3]}
15... O-O {[%clk 0:00:35.2]} 16. h5 {[%clk 0:01:50.8]} 16... Nxd4 {[%clk
0:00:34.9]} 17. Bxd4 {[%clk 0:01:37.5]} 17... Bc6 {[%clk 0:00:34.5]} 18. Bxh7+
{[%clk 0:01:34.5]} 18... Kxh7 {[%clk 0:00:30.3]} 19. g6+ {[%clk 0:01:34.7]}
19... Kg8 {[%clk 0:00:24.3]} 20. h6 {[%clk 0:01:32.5]} 20... Bxh1 {[%clk
0:00:16.3]} 21. Rxh1 {[%clk 0:01:22.6]} 21... Rfd8 {[%clk 0:00:11.6]} 22. h7+
{[%clk 0:01:02.5]} 22... Kh8 {[%clk 0:00:09.1]} 23. Bxg7+ {[%clk 0:01:02.8]}
23... Kxg7 {[%clk 0:00:08.9]} 24. Qh6+ {[%clk 0:01:03.3]} 24... Kf6 {[%clk
0:00:07.9]} 25. g7+ {[%clk 0:01:02.8]} 25... Ke5 {[%clk 0:00:07.5]} 26. Qh2+
{[%clk 0:00:41.1]} 26... Kf6 {[%clk 0:00:04.9]} 27. Qxc7 {[%clk 0:00:40.4]}
27... Rxc7 {[%clk 0:00:05.4]} 28. g8=Q {[%clk 0:00:40.3]} 28... Rxg8 {[%clk
0:00:01.9]} 29. hxg8=Q {[%clk 0:00:40.1]} 29... Bd6 {[%clk 0:00:01.9]} 30. Qd8+
{[%clk 0:00:33]} 30... Re7 {[%clk 0:00:01.1]} 31. Qxd6 {[%clk 0:00:32.7]} 31...
b5 {[%clk 0:00:02]} 32. Rh6+ {[%clk 0:00:31.7]} 32... Kg7 {[%clk 0:00:02]} 33.
Qxe7 {[%clk 0:00:31.9]} 33... Kxh6 {[%clk 0:00:02.9]} 34. Qxf7 {[%clk
0:00:32.2]} 34... b4 {[%clk 0:00:03.8]} 35. Qxe6+ {[%clk 0:00:31.9]} 35... Kg7
{[%clk 0:00:04.2]} 36. Qxa6 {[%clk 0:00:31.4]} 36... b3 {[%clk 0:00:04.5]} 37.
axb3 {[%clk 0:00:31]} 37... Kh8 {[%clk 0:00:04.9]} 38. Qd3 {[%clk 0:00:30.4]}
38... Kg8 {[%clk 0:00:05.8]} 39. b4 {[%clk 0:00:30.5]} 39... Kh8 {[%clk
0:00:06.7]} 40. b5 {[%clk 0:00:31.1]} 40... Kg8 {[%clk 0:00:07.6]} 41. b6 {[%clk
0:00:31.7]} 41... Kh8 {[%clk 0:00:08.5]} 42. b7 {[%clk 0:00:32.3]} 1-0

[Event "Late-Titled-Tuesday-Blitz-October-17-2023"]
[Site "Chess.com"]
[Date "2023.10.17"]
[Round "9"]
[White "nitpicker"]
[Black "becemix"]
[Result "1-0"]
[WhiteElo "2242"]
[BlackElo "2422"]
[TimeControl "180+1"]
[EndTime "15:40:46 PDT"]
[Termination "nitpicker won on time"]

1. d4 {[%clk 0:03:00.9]} 1... e6 {[%clk 0:03:00.4]} 2. c4 {[%clk 0:03:00.3]}
2... Nf6 {[%clk 0:03:00.8]} 3. g3 {[%clk 0:02:59.5]} 3... d5 {[%clk 0:03:00.3]}
4. Nf3 {[%clk 0:02:59.1]} 4... Nbd7 {[%clk 0:02:56.6]} 5. Qc2 {[%clk 0:02:58.1]}
5... Bb4+ {[%clk 0:02:53.4]} 6. Bd2 {[%clk 0:02:56.7]} 6... Be7 {[%clk
0:02:52.3]} 7. Bg2 {[%clk 0:02:55.8]} 7... O-O {[%clk 0:02:51.6]} 8. O-O {[%clk
0:02:55.2]} 8... Nb6 {[%clk 0:02:14.4]} 9. b3 {[%clk 0:02:49.7]} 9... Bd7 {[%clk
0:02:13.3]} 10. Ne5 {[%clk 0:02:47.3]} 10... Bc6 {[%clk 0:02:04.6]} 11. Nxc6
{[%clk 0:02:39]} 11... bxc6 {[%clk 0:02:05.5]} 12. c5 {[%clk 0:02:31.8]} 12...
Nbd7 {[%clk 0:02:05.5]} 13. f4 {[%clk 0:02:27.3]} 13... Ng4 {[%clk 0:01:49.9]}
14. h3 {[%clk 0:02:15.5]} 14... Nh6 {[%clk 0:01:46.8]} 15. Nc3 {[%clk
0:01:57.1]} 15... Nf5 {[%clk 0:01:44.5]} 16. Qd3 {[%clk 0:01:51.6]} 16... f6
{[%clk 0:01:31.6]} 17. e4 {[%clk 0:01:44.8]} 17... Nh6 {[%clk 0:01:25.7]} 18. g4
{[%clk 0:01:41]} 18... e5 {[%clk 0:01:19.3]} 19. b4 {[%clk 0:01:19.9]} 19...
exd4 {[%clk 0:01:10.9]} 20. Qxd4 {[%clk 0:01:12.3]} 20... a5 {[%clk 0:00:59.4]}
21. a3 {[%clk 0:01:06.9]} 21... axb4 {[%clk 0:00:56.4]} 22. axb4 {[%clk
0:01:07.8]} 22... Rb8 {[%clk 0:00:56.9]} 23. Na4 {[%clk 0:00:57.5]} 23... dxe4
{[%clk 0:00:17.7]} 24. Bxe4 {[%clk 0:00:57.2]} 24... Nf7 {[%clk 0:00:16.7]} 25.
Bxc6 {[%clk 0:00:46.3]} 25... Nde5 {[%clk 0:00:08.6]} 26. Qxd8 {[%clk
0:00:37.6]} 26... Nxd8 {[%clk 0:00:09.2]} 27. Bd5+ {[%clk 0:00:36.8]} 27... Nef7
{[%clk 0:00:09]} 28. Rfe1 {[%clk 0:00:34]} 28... Kh8 {[%clk 0:00:09.5]} 29. Rxe7
{[%clk 0:00:32.7]} 29... c6 {[%clk 0:00:10.4]} 30. Bc4 {[%clk 0:00:23.3]} 30...
Nh6 {[%clk 0:00:03.5]} 31. Nb6 {[%clk 0:00:21]} 31... Ndf7 {[%clk 0:00:01.3]}
32. Nd7 {[%clk 0:00:19.5]} 1-0

[Event "Late-Titled-Tuesday-Blitz-October-17-2023"]
[Site "Chess.com"]
[Date "2023.10.17"]
[Round "9"]
[White "Hrant_ChessMood"]
[Black "Zq1"]
[Result "1-0"]
[WhiteElo "2924"]
[BlackElo "2569"]
[TimeControl "180+1"]
[EndTime "15:41:06 PDT"]
[Termination "Hrant_ChessMood won by resignation"]

1. d4 {[%clk 0:03:00.2]} 1... Nf6 {[%clk 0:02:59.1]} 2. c4 {[%clk 0:03:00.4]}
2... a6 {[%clk 0:02:59.5]} 3. Nc3 {[%clk 0:02:59.7]} 3... c5 {[%clk 0:02:59.8]}
4. d5 {[%clk 0:02:58.8]} 4... b5 {[%clk 0:02:59.5]} 5. cxb5 {[%clk 0:02:57.1]}
5... axb5 {[%clk 0:02:59.7]} 6. Nxb5 {[%clk 0:02:57.8]} 6... Qa5+ {[%clk
0:02:58.8]} 7. Nc3 {[%clk 0:02:57.8]} 7... Bb7 {[%clk 0:02:59.1]} 8. Bd2 {[%clk
0:02:55.2]} 8... Qb6 {[%clk 0:02:58.4]} 9. e4 {[%clk 0:02:55.1]} 9... e6 {[%clk
0:02:54.5]} 10. Bc4 {[%clk 0:02:49.3]} 10... Nxe4 {[%clk 0:02:47.9]} 11. Nxe4
{[%clk 0:02:35.3]} 11... exd5 {[%clk 0:02:45.7]} 12. Qe2 {[%clk 0:01:57.7]}
12... dxe4 {[%clk 0:02:44.7]} 13. Nf3 {[%clk 0:01:54]} 13... Be7 {[%clk
0:02:39.9]} 14. Ne5 {[%clk 0:01:30.8]} 14... d5 {[%clk 0:02:29.9]} 15. Bb5+
{[%clk 0:01:31.1]} 15... Nc6 {[%clk 0:02:29.3]} 16. O-O {[%clk 0:01:25]} 16...
Rd8 {[%clk 0:02:22.8]} 17. Ba5 {[%clk 0:01:15.4]} 17... Qxa5 {[%clk 0:01:57.4]}
18. Bxc6+ {[%clk 0:01:15.5]} 18... Bxc6 {[%clk 0:01:55.7]} 19. Nxc6 {[%clk
0:01:16.4]} 19... Qa8 {[%clk 0:01:52.4]} 20. Nxd8 {[%clk 0:01:16.6]} 20... Qxd8
{[%clk 0:01:51.8]} 21. Rfd1 {[%clk 0:01:16.2]} 21... O-O {[%clk 0:01:47]} 22. a4
{[%clk 0:00:55.3]} 22... f5 {[%clk 0:01:45.7]} 23. a5 {[%clk 0:00:55.5]} 23...
d4 {[%clk 0:01:45.6]} 24. Qc4+ {[%clk 0:00:52.4]} 24... Kh8 {[%clk 0:01:44.6]}
25. a6 {[%clk 0:00:53.1]} 25... Qd7 {[%clk 0:01:25.7]} 26. b4 {[%clk 0:00:44.1]}
26... cxb4 {[%clk 0:01:17.8]} 27. Rxd4 {[%clk 0:00:44.1]} 27... Qa7 {[%clk
0:01:14.8]} 28. Rad1 {[%clk 0:00:43.8]} 28... Bf6 {[%clk 0:00:58]} 29. Rd7
{[%clk 0:00:39.2]} 29... Qa8 {[%clk 0:00:57.6]} 30. Qxb4 {[%clk 0:00:36.8]}
30... Rg8 {[%clk 0:00:47.3]} 31. Qb7 {[%clk 0:00:36.5]} 31... Qe8 {[%clk
0:00:43.6]} 32. a7 {[%clk 0:00:35.8]} 32... f4 {[%clk 0:00:42.5]} 33. Re1 {[%clk
0:00:20.2]} 33... e3 {[%clk 0:00:42.2]} 34. fxe3 {[%clk 0:00:20.2]} 34... fxe3
{[%clk 0:00:42.3]} 35. Qd5 {[%clk 0:00:19.7]} 35... h6 {[%clk 0:00:25.8]} 36. g3
{[%clk 0:00:20.1]} 36... e2 {[%clk 0:00:21.5]} 37. Kg2 {[%clk 0:00:20.3]} 37...
Rf8 {[%clk 0:00:20.4]} 38. Qd3 {[%clk 0:00:15.1]} 38... Qa8+ {[%clk 0:00:18.1]}
39. Qd5 {[%clk 0:00:15.5]} 39... Qe8 {[%clk 0:00:16.3]} 40. Rb7 {[%clk
0:00:14.2]} 40... Bc3 {[%clk 0:00:13.2]} 41. Rb8 {[%clk 0:00:14.2]} 1-0

[Event "Late-Titled-Tuesday-Blitz-October-17-2023"]
[Site "Chess.com"]
[Date "2023.10.17"]
[Round "9"]
[White "Payyappat"]
[Black "djano"]
[Result "0-1"]
[WhiteElo "2504"]
[BlackElo "2681"]
[TimeControl "180+1"]
[EndTime "15:41:09 PDT"]
[Termination "djano won by resignation"]

1. e4 {[%clk 0:03:00.9]} 1... c5 {[%clk 0:02:58.7]} 2. Nf3 {[%clk 0:03:00.1]}
2... Nc6 {[%clk 0:02:59]} 3. d4 {[%clk 0:03:00.7]} 3... cxd4 {[%clk 0:02:59.9]}
4. Nxd4 {[%clk 0:03:01.6]} 4... g6 {[%clk 0:03:00.4]} 5. Nc3 {[%clk 0:03:01.5]}
5... Bg7 {[%clk 0:03:00]} 6. Be3 {[%clk 0:03:02.4]} 6... Nf6 {[%clk 0:03:00.1]}
7. f4 {[%clk 0:03:01.2]} 7... Ng4 {[%clk 0:02:47.8]} 8. Bg1 {[%clk 0:02:56.4]}
8... d6 {[%clk 0:02:32.5]} 9. Be2 {[%clk 0:02:51.7]} 9... Nf6 {[%clk 0:02:27.2]}
10. Be3 {[%clk 0:02:45.2]} 10... O-O {[%clk 0:02:26.1]} 11. O-O {[%clk
0:02:44.3]} 11... Bd7 {[%clk 0:02:24]} 12. f5 {[%clk 0:02:37.5]} 12... Ne5
{[%clk 0:02:20.2]} 13. g4 {[%clk 0:02:34.1]} 13... Rc8 {[%clk 0:02:17.8]} 14. g5
{[%clk 0:02:29.3]} 14... Rxc3 {[%clk 0:02:03.7]} 15. gxf6 {[%clk 0:01:40.9]}
15... Rxe3 {[%clk 0:02:03.5]} 16. fxg7 {[%clk 0:01:39.7]} 16... Kxg7 {[%clk
0:02:04.4]} 17. Bd3 {[%clk 0:01:37.6]} 17... Nxd3 {[%clk 0:01:50.3]} 18. Qd2
{[%clk 0:01:18.3]} 18... Rh3 {[%clk 0:01:36.1]} 19. cxd3 {[%clk 0:01:14.8]}
19... Qb6 {[%clk 0:01:30.2]} 20. Qf2 {[%clk 0:01:07.6]} 20... Rxd3 {[%clk
0:01:13.3]} 21. f6+ {[%clk 0:00:48]} 21... exf6 {[%clk 0:01:12.9]} 22. Qxf6+
{[%clk 0:00:41.4]} 22... Kg8 {[%clk 0:01:10.3]} 23. Rad1 {[%clk 0:00:40.8]}
23... Rxd1 {[%clk 0:00:46.5]} 24. Rxd1 {[%clk 0:00:41.7]} 24... Re8 {[%clk
0:00:46.4]} 25. Rf1 {[%clk 0:00:28.2]} 25... Rf8 {[%clk 0:00:38.7]} 26. Rf2
{[%clk 0:00:20.5]} 26... Bh3 {[%clk 0:00:30]} 27. Qh4 {[%clk 0:00:15.5]} 27...
Qxd4 {[%clk 0:00:28.4]} 28. Qxh3 {[%clk 0:00:15.7]} 28... Qxe4 {[%clk
0:00:24.6]} 29. Qb3 {[%clk 0:00:16]} 29... d5 {[%clk 0:00:20.3]} 30. Qxb7 {[%clk
0:00:15.9]} 30... Qe1+ {[%clk 0:00:17.3]} 31. Rf1 {[%clk 0:00:15.4]} 31... Qe4
{[%clk 0:00:18.2]} 32. Qb3 {[%clk 0:00:14.7]} 32... d4 {[%clk 0:00:17.9]} 33.
Rf3 {[%clk 0:00:10.9]} 33... Kg7 {[%clk 0:00:16.4]} 34. Kf2 {[%clk 0:00:10.8]}
34... f5 {[%clk 0:00:16.1]} 35. Rd3 {[%clk 0:00:08.8]} 35... Re8 {[%clk
0:00:15.4]} 36. Qc2 {[%clk 0:00:07.8]} 36... Qh4+ {[%clk 0:00:13.5]} 37. Kg2
{[%clk 0:00:08.1]} 37... Qg4+ {[%clk 0:00:12.7]} 38. Rg3 {[%clk 0:00:08.1]}
38... Re2+ {[%clk 0:00:12.8]} 39. Kf1 {[%clk 0:00:08.5]} 39... Rxc2 {[%clk
0:00:12.1]} 0-1